[Event "56th Biel Festival Rapid 2023"]
[Site "Biel"]
[Date "2024.04.13"]
[Round "6.38"]
[White "Bonauer, Stephan"]
[Black "Richard, Emma"]
[Result "0-1"]
[WhiteElo "1504"]
[BlackElo "2157"]
[PlyCount "60"]
[EventDate "2023.07.16"]
[EventType "swiss"]
[EventCountry "SUI"]
[TimeControl "900+5"]

1. d4 {[%emt 0:00:05]} Nf6 {[%emt 0:00:05]} 2. c4 {[%emt 0:00:00]} e6 {[%emt 0:00:01]} 3. Nc3 {[%emt 0:00:02]} Bb4 {[%emt 0:00:07]} 4. Qc2 {[%emt 0:00:06]} O-O {[%emt 0:00:18]} 5. Nf3 {[%emt 0:00:05]} d5 {[%emt 0:00:12]} 6. Bg5 {[%emt 0:00:01]} h6 {[%emt 0:00:15]} 7. Bh4 {[%emt 0:00:05]} b6 {[%emt 0:00:12]} 8. e3 {[%emt 0:00:21]} Be7 {[%emt 0:00:08]} 9. Bg3 {[%emt 0:00:28]} c5 {[%emt 0:00:18]} 10. Nb5 {[%emt 0:00:32]} Na6 {[%emt 0:00:30]} 11. a3 {[%emt 0:00:05]} Bb7 {[%emt 0:00:37]} 12. Be2 {[%emt 0:00:05]} cxd4 {[%emt 0:01:07]} 13. Nbxd4 {[%emt 0:00:14]} Nc5 {[%emt 0:00:37]} 14. O-O {[%emt 0:00:06]} Rc8 {[%emt 0:00:35]} 15. b4 {[%emt 0:00:04]} Nce4 {[%emt 0:00:34]} 16. Ne5 {[%emt 0:00:03]} Nxg3 {[%emt 0:00:31]} 17. fxg3 {[%emt 0:00:20]} Bd6 {[%emt 0:00:11]} 18. Ng4 {[%emt 0:00:15]} Nxg4 {[%emt 0:00:44]} 19. Bxg4 {[%emt 0:00:18]} Rxc4 {[%emt 0:00:03]} 20. Qf2 {[%emt 0:00:06]} Bc8 {[%emt 0:00:21]} 21. Rac1 {[%emt 0:01:51]} Rxc1 {[%emt 0:00:19]} 22. Rxc1 {[%emt 0:00:41]} Bd7 {[%emt 0:01:07]} 23. Nc6 {[%emt 0:00:02]} Qa8 {[%emt 0:00:05]} 24. b5 {[%emt 0:00:10]} Bxa3 {[%emt 0:00:09]} 25. Ra1 {[%emt 0:00:06]} Bxc6 {[%emt 0:00:10]} 26. bxc6 {[%emt 0:00:07]} Bc5 {[%emt 0:00:37]} 27. Qf4 {[%emt 0:00:01]} a5 {[%emt 0:01:23]} 28. c7 {[%emt 0:00:12]} Qc6 {[%emt 0:00:05]} 29. Rc1 {[%emt 0:01:01]} Rc8 {[%emt 0:00:25]} 30. Bf3 {[%emt 0:00:13]} Rxc7 {[%emt 0:00:36]} 0-1

[Event "56th Biel Festival Rapid 2023"]
[Site "Biel"]
[Date "2024.04.13"]
[Round "6.40"]
[White "Chervet, Olivier"]
[Black "Begdullayev, Tamerlan"]
[Result "*"]
[WhiteElo "1963"]
[BlackElo "1783"]
[PlyCount "22"]
[EventDate "2023.07.16"]
[EventType "swiss"]
[EventCountry "SUI"]
[TimeControl "900+5"]

1. d4 {[%emt 0:00:11]} d5 {[%emt 0:00:05]} 2. e3 {[%emt 0:00:05]} Nf6 {[%emt 0:00:03]} 3. Bd3 {[%emt 0:00:09]} c5 {[%emt 0:00:03]} 4. c3 {[%emt 0:00:04]} Nc6 {[%emt 0:00:01]} 5. f4 {[%emt 0:00:13]} e6 {[%emt 0:00:03]} 6. Nd2 {[%emt 0:00:20]} cxd4 {[%emt 0:00:11]} 7. cxd4 {[%emt 0:00:19]} Be7 {[%emt 0:00:10]} 8. Ngf3 {[%emt 0:00:22]} O-O {[%emt 0:00:23]} 9. Ne5 {[%emt 0:00:15]} Nd7 {[%emt 0:00:02]} 10. Qh5 {[%emt 0:00:57]} f5 {[%emt 0:02:48]} 11. O-O {[%emt 0:03:52]} g6 {[%emt 0:01:00]} *

[Event "56th Biel Festival Rapid 2023"]
[Site "Biel"]
[Date "2024.04.13"]
[Round "6.41"]
[White "Dorand, Jean-Pierre"]
[Black "Keymer, Cecilia"]
[Result "1/2-1/2"]
[WhiteElo "1885"]
[BlackElo "1698"]
[PlyCount "56"]
[EventDate "2023.07.16"]
[EventType "swiss"]
[EventCountry "SUI"]
[TimeControl "900+5"]

1. c4 {[%emt 0:00:03]} c6 {[%emt 0:00:05]} 2. Nf3 {[%emt 0:00:03]} d5 {[%emt 0:00:02]} 3. cxd5 {[%emt 0:00:02]} cxd5 {[%emt 0:00:01]} 4. d4 {[%emt 0:00:02]} Nc6 {[%emt 0:00:08]} 5. Nc3 {[%emt 0:00:01]} Nf6 {[%emt 0:00:05]} 6. Bf4 {[%emt 0:00:02]} a6 {[%emt 0:00:13]} 7. e3 {[%emt 0:00:02]} Bg4 {[%emt 0:00:11]} 8. Be2 {[%emt 0:00:02]} e6 {[%emt 0:00:08]} 9. O-O {[%emt 0:00:03]} Bd6 {[%emt 0:00:34]} 10. Bg3 {[%emt 0:00:30]} O-O {[%emt 0:00:52]} 11. Bxd6 {[%emt 0:00:22]} Qxd6 {[%emt 0:00:03]} 12. h3 {[%emt 0:00:02]} Bh5 {[%emt 0:00:35]} 13. a3 {[%emt 0:00:36]} Rac8 {[%emt 0:00:54]} 14. Rc1 {[%emt 0:01:24]} Na5 {[%emt 0:00:44]} 15. Ne5 {[%emt 0:00:51]} Bxe2 {[%emt 0:00:39]} 16. Qxe2 {[%emt 0:00:02]} Nc4 {[%emt 0:00:45]} 17. Nxc4 {[%emt 0:00:15]} dxc4 {[%emt 0:01:21]} 18. Rfd1 {[%emt 0:00:04]} Nd5 {[%emt 0:01:40]} 19. Ne4 {[%emt 0:00:44]} Qc6 {[%emt 0:00:57]} 20. f3 {[%emt 0:02:46]} b5 {[%emt 0:00:49]} 21. Nc5 {[%emt 0:00:57]} Rfd8 {[%emt 0:01:04]} 22. Kf2 {[%emt 0:01:21]} Qb6 {[%emt 0:00:55]} 23. g3 {[%emt 0:01:13]} h6 {[%emt 0:00:37]} 24. a4 {[%emt 0:00:36]} Nb4 {[%emt 0:01:19]} 25. axb5 {[%emt 0:00:05]} axb5 {[%emt 0:00:05]} 26. Ra1 {[%emt 0:00:04]} Ra8 {[%emt 0:00:21]} 27. Qd2 {[%emt 0:01:30]} Nd5 {[%emt 0:00:05]} 28. Kg2 {[%emt 0:00:21]} Qc6 {[%emt 0:00:43]} 1/2-1/2

[Event "56th Biel Festival Rapid 2023"]
[Site "Biel"]
[Date "2024.04.13"]
[Round "6.46"]
[White "Creux François"]
[Black "Ranieri, Pierpaolo"]
[Result "*"]
[WhiteElo "1753"]
[BlackElo "1753"]
[PlyCount "86"]
[EventDate "2023.07.16"]
[EventType "swiss"]
[EventCountry "SUI"]
[TimeControl "900+5"]

1. e4 {[%emt 0:00:01]} d5 {[%emt 0:00:03]} 2. exd5 {[%emt 0:00:04]} Qxd5 {[%emt 0:00:02]} 3. Nc3 {[%emt 0:00:02]} Qd8 {[%emt 0:00:02]} 4. h3 {[%emt 0:00:09]} Nf6 {[%emt 0:00:08]} 5. Nf3 {[%emt 0:00:08]} Nc6 {[%emt 0:00:12]} 6. d4 {[%emt 0:00:21]} Bf5 {[%emt 0:00:25]} 7. a3 {[%emt 0:00:09]} e6 {[%emt 0:00:12]} 8. Bg5 {[%emt 0:00:13]} Be7 {[%emt 0:00:06]} 9. Be2 {[%emt 0:00:35]} h6 {[%emt 0:00:15]} 10. Be3 {[%emt 0:00:21]} O-O {[%emt 0:00:52]} 11. O-O {[%emt 0:00:13]} Qd7 {[%emt 0:00:46]} 12. Bb5 {[%emt 0:00:14]} a6 {[%emt 0:00:26]} 13. Ba4 {[%emt 0:00:01]} b5 {[%emt 0:00:16]} 14. Bb3 {[%emt 0:00:02]} Rfd8 {[%emt 0:00:14]} 15. Ne5 {[%emt 0:00:32]} Nxe5 {[%emt 0:00:11]} 16. dxe5 {[%emt 0:00:02]} Ne4 {[%emt 0:00:23]} 17. Nxe4 {[%emt 0:00:30]} Bxe4 {[%emt 0:00:05]} 18. Qe2 {[%emt 0:00:12]} Bb7 {[%emt 0:00:25]} 19. Rfd1 {[%emt 0:01:05]} Qc6 {[%emt 0:00:01]} 20. f3 {[%emt 0:00:40]} Bc5 {[%emt 0:01:03]} 21. Rd3 {[%emt 0:00:56]} Rxd3 {[%emt 0:00:13]} 22. Qxd3 {[%emt 0:00:28]} Bxe3+ {[%emt 0:00:08]} 23. Qxe3 {[%emt 0:00:02]} Rd8 {[%emt 0:00:03]} 24. Kf2 {[%emt 0:00:20]} a5 {[%emt 0:00:45]} 25. a4 {[%emt 0:00:51]} b4 {[%emt 0:00:10]} 26. Re1 {[%emt 0:00:30]} Ba6 {[%emt 0:00:43]} 27. Qe4 {[%emt 0:00:58]} Rd2+ {[%emt 0:00:40]} 28. Kg3 {[%emt 0:00:05]} Qxe4 {[%emt 0:01:28]} 29. fxe4 {[%emt 0:00:22]} c5 {[%emt 0:00:07]} 30. Rc1 {[%emt 0:00:42]} Rd4 {[%emt 0:02:05]} 31. Kf4 {[%emt 0:00:31]} c4 {[%emt 0:00:20]} 32. Ba2 {[%emt 0:00:07]} Bb7 {[%emt 0:00:24]} 33. Re1 {[%emt 0:00:06]} Bc6 {[%emt 0:00:29]} 34. b3 {[%emt 0:00:13]} c3 {[%emt 0:00:15]} 35. g4 {[%emt 0:00:39]} g5+ {[%emt 0:00:52]} 36. Kf3 {[%emt 0:00:15]} Kf8 {[%emt 0:00:16]} 37. Bb1 {[%emt 0:00:25]} Ke7 {[%emt 0:00:03]} 38. Ba2 {[%emt 0:00:10]} Kd7 {[%emt 0:00:02]} 39. Bb1 {[%emt 0:00:09]} Kc7 {[%emt 0:00:01]} 40. Ba2 {[%emt 0:00:18]} Kb6 {[%emt 0:00:01]} 41. Bb1 {[%emt 0:00:17]} Kc5 {[%emt 0:00:01]} 42. Ba2 {[%emt 0:00:16]} Rd2 {[%emt 0:00:05]} 43. Bb1 {[%emt 0:00:11]} Kd4 {[%emt 0:00:10]} *

[Event "56th Biel Festival Rapid 2023"]
[Site "Biel"]
[Date "2024.04.13"]
[Round "6.48"]
[White "Giambrone, Salvatore"]
[Black "Girardin Elias"]
[Result "*"]
[WhiteElo "1772"]
[BlackElo "1419"]
[PlyCount "55"]
[EventDate "2023.07.16"]
[EventType "swiss"]
[EventCountry "SUI"]
[TimeControl "900+5"]

1. d4 {[%emt 0:00:03]} f5 {[%emt 0:00:01]} 2. Nf3 {[%emt 0:00:05]} e6 {[%emt 0:00:01]} 3. g3 {[%emt 0:00:01]} Nf6 {[%emt 0:00:02]} 4. c4 {[%emt 0:00:00]} Be7 {[%emt 0:00:02]} 5. Bg2 {[%emt 0:00:02]} O-O {[%emt 0:00:03]} 6. Nc3 {[%emt 0:00:00]} d6 {[%emt 0:00:02]} 7. O-O {[%emt 0:00:00]} Ne4 {[%emt 0:00:02]} 8. Nd2 {[%emt 0:00:08]} Nxc3 {[%emt 0:00:06]} 9. bxc3 {[%emt 0:00:01]} e5 {[%emt 0:00:14]} 10. e4 {[%emt 0:00:10]} fxe4 {[%emt 0:00:09]} 11. Nxe4 {[%emt 0:00:23]} Nc6 {[%emt 0:00:11]} 12. Be3 {[%emt 0:00:31]} Qe8 {[%emt 0:00:24]} 13. Rb1 {[%emt 0:00:23]} Na5 {[%emt 0:00:35]} 14. Qe2 {[%emt 0:00:27]} Qg6 {[%emt 0:00:31]} 15. Nd2 {[%emt 0:02:48]} Bf5 {[%emt 0:00:11]} 16. Rb5 {[%emt 0:00:26]} Bd3 {[%emt 0:00:03]} 17. Qe1 {[%emt 0:01:13]} Bxf1 {[%emt 0:00:03]} 18. Kxf1 {[%emt 0:00:02]} b6 {[%emt 0:01:25]} 19. Bxa8 {[%emt 0:00:05]} Rxa8 {[%emt 0:00:03]} 20. dxe5 {[%emt 0:02:15]} c6 {[%emt 0:00:45]} 21. Rb2 {[%emt 0:04:29]} dxe5 {[%emt 0:01:08]} 22. Qe2 {[%emt 0:00:08]} Rf8 {[%emt 0:01:51]} 23. Nb3 {[%emt 0:00:07]} Ba3 {[%emt 0:01:20]} 24. Rd2 {[%emt 0:00:13]} Nxb3 {[%emt 0:00:53]} 25. axb3 {[%emt 0:00:02]} Bc1 {[%emt 0:00:04]} 26. Rd3 {[%emt 0:02:09]} Bxe3 {[%emt 0:00:20]} 27. Qxe3 {[%emt 0:00:05]} Qf5 {[%emt 0:02:54]} 28. b4 {[%emt 0:00:16]} *

[Event "56th Biel Festival Rapid 2023"]
[Site "Biel"]
[Date "2024.04.13"]
[Round "7.2"]
[White "Pranav Anand"]
[Black "Huang, Renjie"]
[Result "1/2-1/2"]
[WhiteElo "2510"]
[BlackElo "2445"]
[PlyCount "86"]
[EventDate "2023.07.16"]
[EventType "swiss"]
[EventCountry "SUI"]
[TimeControl "900+5"]

1. d4 {[%emt 0:00:04]} Nf6 {[%emt 0:00:01]} 2. c4 {[%emt 0:00:03]} e6 {[%emt 0:00:01]} 3. Nc3 {[%emt 0:00:03]} d5 {[%emt 0:00:01]} 4. cxd5 {[%emt 0:00:01]} exd5 {[%emt 0:00:01]} 5. Bg5 {[%emt 0:00:06]} c6 {[%emt 0:00:02]} 6. e3 {[%emt 0:00:00]} Be7 {[%emt 0:00:03]} 7. Bd3 {[%emt 0:00:00]} Nbd7 {[%emt 0:00:02]} 8. Qc2 {[%emt 0:00:09]} Nh5 {[%emt 0:00:02]} 9. Bxe7 {[%emt 0:00:21]} Qxe7 {[%emt 0:00:02]} 10. Nge2 {[%emt 0:00:15]} g6 {[%emt 0:00:15]} 11. g4 {[%emt 0:00:19]} Nhf6 {[%emt 0:00:16]} 12. h3 {[%emt 0:00:09]} Nb6 {[%emt 0:00:18]} 13. O-O-O {[%emt 0:00:11]} Be6 {[%emt 0:00:11]} 14. Kb1 {[%emt 0:00:07]} O-O-O {[%emt 0:00:12]} 15. Nf4 {[%emt 0:00:27]} Kb8 {[%emt 0:00:31]} 16. Qb3 {[%emt 0:00:32]} h5 {[%emt 0:00:20]} 17. g5 {[%emt 0:00:59]} Ne8 {[%emt 0:00:04]} 18. Nxe6 {[%emt 0:00:14]} Qxe6 {[%emt 0:00:02]} 19. a4 {[%emt 0:00:07]} Nd6 {[%emt 0:00:24]} 20. a5 {[%emt 0:00:07]} Nbc4 {[%emt 0:00:03]} 21. a6 {[%emt 0:00:04]} b6 {[%emt 0:00:07]} 22. Qa4 {[%emt 0:00:19]} Rc8 {[%emt 0:00:37]} 23. b3 {[%emt 0:00:10]} Na5 {[%emt 0:00:05]} 24. Kb2 {[%emt 0:00:46]} f6 {[%emt 0:00:03]} 25. gxf6 {[%emt 0:00:38]} Rhf8 {[%emt 0:00:01]} 26. Rd2 {[%emt 0:01:16]} Rxf6 {[%emt 0:00:08]} 27. Qa1 {[%emt 0:00:17]} c5 {[%emt 0:00:25]} 28. dxc5 {[%emt 0:00:37]} d4 {[%emt 0:01:00]} 29. exd4 {[%emt 0:00:33]} Qxb3+ {[%emt 0:00:02]} 30. Kc1 {[%emt 0:00:05]} Ndc4 {[%emt 0:00:01]} 31. Rc2 {[%emt 0:01:31]} Na3 {[%emt 0:01:43]} 32. Ra2 {[%emt 0:00:36]} N5c4 {[%emt 0:00:41]} 33. Bxc4 {[%emt 0:00:30]} Nxc4 {[%emt 0:00:02]} 34. Rc2 {[%emt 0:00:08]} bxc5 {[%emt 0:00:25]} 35. d5 {[%emt 0:00:34]} Ka8 {[%emt 0:01:29]} 36. Qa4 {[%emt 0:00:17]} Qb4 {[%emt 0:00:30]} 37. Re1 {[%emt 0:00:34]} Rxf2 {[%emt 0:02:41]} 38. Rxf2 {[%emt 0:02:10]} Qxc3+ {[%emt 0:00:04]} 39. Kd1 {[%emt 0:00:01]} Qd4+ {[%emt 0:04:28]} 40. Kc1 {[%emt 0:00:07]} Qc3+ {[%emt 0:00:01]} 41. Kd1 {[%emt 0:00:04]} Qd3+ {[%emt 0:00:36]} 42. Kc1 {[%emt 0:00:03]} Qc3+ {[%emt 0:00:03]} 43. Kd1 {[%emt 0:00:05]} Qd3+ {[%emt 0:00:13]} 1/2-1/2

[Event "56th Biel Festival Rapid 2023"]
[Site "Biel"]
[Date "2024.04.13"]
[Round "7.6"]
[White "Riff, Jean-Noel"]
[Black "Toktomushev, Teimur"]
[Result "0-1"]
[WhiteElo "2401"]
[BlackElo "2206"]
[PlyCount "88"]
[EventDate "2023.07.16"]
[EventType "swiss"]
[EventCountry "SUI"]
[TimeControl "900+5"]

1. e4 {[%emt 0:00:03]} c5 {[%emt 0:00:01]} 2. Nf3 {[%emt 0:00:02]} e6 {[%emt 0:00:01]} 3. d4 {[%emt 0:00:03]} cxd4 {[%emt 0:00:02]} 4. Nxd4 {[%emt 0:00:01]} a6 {[%emt 0:00:01]} 5. Be2 {[%emt 0:00:01]} Nf6 {[%emt 0:00:26]} 6. Nc3 {[%emt 0:00:02]} d6 {[%emt 0:03:13]} 7. O-O {[%emt 0:00:02]} Be7 {[%emt 0:00:01]} 8. f4 {[%emt 0:00:05]} Qc7 {[%emt 0:00:49]} 9. Kh1 {[%emt 0:00:20]} Nbd7 {[%emt 0:03:42]} 10. Bf3 {[%emt 0:00:24]} Nc5 {[%emt 0:01:52]} 11. Qe1 {[%emt 0:00:12]} O-O {[%emt 0:01:22]} 12. e5 {[%emt 0:00:07]} Ne8 {[%emt 0:01:37]} 13. Qg3 {[%emt 0:01:33]} f6 {[%emt 0:02:18]} 14. exf6 {[%emt 0:00:34]} Bxf6 {[%emt 0:00:02]} 15. Be3 {[%emt 0:00:03]} d5 {[%emt 0:00:27]} 16. f5 {[%emt 0:00:30]} Qxg3 {[%emt 0:00:08]} 17. hxg3 {[%emt 0:00:02]} Nc7 {[%emt 0:00:20]} 18. fxe6 {[%emt 0:00:07]} N5xe6 {[%emt 0:00:01]} 19. Rad1 {[%emt 0:00:10]} Nxd4 {[%emt 0:00:06]} 20. Bxd4 {[%emt 0:00:01]} Bxd4 {[%emt 0:00:09]} 21. Rxd4 {[%emt 0:00:02]} Be6 {[%emt 0:00:01]} 22. Rfd1 {[%emt 0:00:07]} Rad8 {[%emt 0:00:09]} 23. Kg1 {[%emt 0:00:02]} Rf5 {[%emt 0:00:04]} 24. Bg4 {[%emt 0:00:52]} Re5 {[%emt 0:00:05]} 25. Bxe6+ {[%emt 0:00:01]} Nxe6 {[%emt 0:00:04]} 26. Rxd5 {[%emt 0:00:02]} Rdxd5 {[%emt 0:00:02]} 27. Rxd5 {[%emt 0:00:02]} Re1+ {[%emt 0:00:08]} 28. Kf2 {[%emt 0:00:01]} Rc1 {[%emt 0:00:01]} 29. Rd2 {[%emt 0:00:06]} h5 {[%emt 0:00:12]} 30. Ne4 {[%emt 0:00:24]} Rb1 {[%emt 0:00:04]} 31. b3 {[%emt 0:00:06]} Rb2 {[%emt 0:00:06]} 32. a4 {[%emt 0:00:02]} b5 {[%emt 0:00:03]} 33. axb5 {[%emt 0:00:03]} axb5 {[%emt 0:00:05]} 34. Ke3 {[%emt 0:00:25]} Rb1 {[%emt 0:00:05]} 35. Rd6 {[%emt 0:00:28]} Re1+ {[%emt 0:00:06]} 36. Kf3 {[%emt 0:00:02]} Kf7 {[%emt 0:00:03]} 37. Rb6 {[%emt 0:00:14]} Nd4+ {[%emt 0:00:04]} 38. Kf4 {[%emt 0:00:03]} Nxc2 {[%emt 0:00:06]} 39. Rxb5 {[%emt 0:00:10]} Rf1+ {[%emt 0:00:06]} 40. Ke5 {[%emt 0:00:03]} Ne3 {[%emt 0:00:05]} 41. Rb7+ {[%emt 0:00:02]} Kg6 {[%emt 0:00:05]} 42. Rb6+ {[%emt 0:00:00]} Kf7 {[%emt 0:00:05]} 43. Ng5+ {[%emt 0:00:05]} Ke8 {[%emt 0:00:06]} 44. Ke6 {[%emt 0:00:13]} Rf6+ {[%emt 0:00:01]} 0-1

[Event "56th Biel Festival Rapid 2023"]
[Site "Biel"]
[Date "2024.04.13"]
[Round "7.7"]
[White "Ouellet, Maili-Jade"]
[Black "Rodrigue-Lemieux, Shawn"]
[Result "0-1"]
[WhiteElo "2201"]
[BlackElo "2495"]
[PlyCount "59"]
[EventDate "2023.07.16"]
[EventType "swiss"]
[EventCountry "SUI"]
[TimeControl "900+5"]

1. d4 {[%emt 0:00:03]} e6 {[%emt 0:02:06]} 2. c4 {[%emt 0:00:03]} Bb4+ {[%emt 0:00:03]} 3. Nd2 {[%emt 0:00:06]} d5 {[%emt 0:00:12]} 4. a3 {[%emt 0:00:23]} Be7 {[%emt 0:00:08]} 5. e4 {[%emt 0:00:10]} c5 {[%emt 0:00:01]} 6. Ngf3 {[%emt 0:00:17]} cxd4 {[%emt 0:00:17]} 7. cxd5 {[%emt 0:00:16]} exd5 {[%emt 0:00:01]} 8. exd5 {[%emt 0:00:51]} Nf6 {[%emt 0:00:26]} 9. Qa4+ {[%emt 0:00:29]} Nbd7 {[%emt 0:00:02]} 10. Qxd4 {[%emt 0:00:04]} Bc5 {[%emt 0:00:01]} 11. Qc4 {[%emt 0:00:52]} O-O {[%emt 0:01:09]} 12. Be2 {[%emt 0:00:06]} Qe7 {[%emt 0:01:17]} 13. Nb3 {[%emt 0:00:40]} Bd6 {[%emt 0:00:44]} 14. Be3 {[%emt 0:00:38]} Nb6 {[%emt 0:00:17]} 15. Bxb6 {[%emt 0:00:18]} axb6 {[%emt 0:00:01]} 16. O-O {[%emt 0:00:12]} Bd7 {[%emt 0:00:05]} 17. Nbd4 {[%emt 0:00:37]} Rfc8 {[%emt 0:00:11]} 18. Qb3 {[%emt 0:00:26]} Bc5 {[%emt 0:00:45]} 19. Rfe1 {[%emt 0:01:10]} Qd6 {[%emt 0:00:11]} 20. Bb5 {[%emt 0:00:37]} Rd8 {[%emt 0:01:40]} 21. Rad1 {[%emt 0:00:24]} Bxb5 {[%emt 0:00:37]} 22. Nxb5 {[%emt 0:00:11]} Qf4 {[%emt 0:00:01]} 23. g3 {[%emt 0:01:33]} Qf5 {[%emt 0:00:02]} 24. Re5 {[%emt 0:01:18]} Qh3 {[%emt 0:00:10]} 25. Ng5 {[%emt 0:00:22]} Bxf2+ {[%emt 0:00:50]} 26. Kxf2 {[%emt 0:00:55]} Ng4+ {[%emt 0:00:04]} 27. Ke1 {[%emt 0:00:14]} Qxh2 {[%emt 0:00:02]} 28. Re2 {[%emt 0:00:43]} Qh1+ {[%emt 0:00:03]} 29. Kd2 {[%emt 0:00:03]} Qxd5+ {[%emt 0:00:20]} 30. Kc1 {[%emt 0:00:22]} 0-1

[Event "56th Biel Festival Rapid 2023"]
[Site "Biel"]
[Date "2024.04.13"]
[Round "7.16"]
[White "Haugner, Jan"]
[Black "von Burg, Carl Alexander"]
[Result "1-0"]
[WhiteElo "2066"]
[BlackElo "1537"]
[PlyCount "117"]
[EventDate "2023.07.16"]
[EventType "swiss"]
[EventCountry "SUI"]
[TimeControl "900+5"]

1. e4 {[%emt 0:00:02]} c6 {[%emt 0:00:01]} 2. d4 {[%emt 0:00:02]} d5 {[%emt 0:00:01]} 3. e5 {[%emt 0:00:01]} c5 {[%emt 0:00:02]} 4. Nf3 {[%emt 0:00:01]} Nc6 {[%emt 0:00:02]} 5. dxc5 {[%emt 0:00:04]} Bg4 {[%emt 0:00:01]} 6. Bb5 {[%emt 0:00:42]} Qa5+ {[%emt 0:01:08]} 7. Nc3 {[%emt 0:00:01]} e6 {[%emt 0:00:02]} 8. Be3 {[%emt 0:00:38]} a6 {[%emt 0:00:12]} 9. Bxc6+ {[%emt 0:00:09]} bxc6 {[%emt 0:00:02]} 10. a3 {[%emt 0:00:25]} Ne7 {[%emt 0:00:18]} 11. b4 {[%emt 0:00:09]} Qc7 {[%emt 0:00:02]} 12. Bd4 {[%emt 0:00:27]} Nf5 {[%emt 0:00:06]} 13. Ne2 {[%emt 0:00:50]} Bxf3 {[%emt 0:00:25]} 14. gxf3 {[%emt 0:00:02]} a5 {[%emt 0:01:09]} 15. Ng3 {[%emt 0:00:47]} Nxd4 {[%emt 0:00:07]} 16. Qxd4 {[%emt 0:00:02]} axb4 {[%emt 0:00:03]} 17. axb4 {[%emt 0:00:03]} Rxa1+ {[%emt 0:00:32]} 18. Qxa1 {[%emt 0:00:05]} Be7 {[%emt 0:00:38]} 19. O-O {[%emt 0:00:46]} O-O {[%emt 0:00:12]} 20. Qd4 {[%emt 0:00:18]} Ra8 {[%emt 0:00:12]} 21. f4 {[%emt 0:00:09]} g6 {[%emt 0:00:05]} 22. Ra1 {[%emt 0:00:07]} Qb7 {[%emt 0:00:18]} 23. Rxa8+ {[%emt 0:00:25]} Qxa8 {[%emt 0:00:02]} 24. c4 {[%emt 0:00:25]} Qa2 {[%emt 0:00:34]} 25. cxd5 {[%emt 0:00:07]} exd5 {[%emt 0:00:18]} 26. Kg2 {[%emt 0:00:14]} Qb3 {[%emt 0:00:59]} 27. Ne2 {[%emt 0:01:01]} h5 {[%emt 0:00:17]} 28. Nc3 {[%emt 0:00:40]} h4 {[%emt 0:00:20]} 29. h3 {[%emt 0:00:08]} Kh7 {[%emt 0:01:01]} 30. Nd1 {[%emt 0:03:33]} Bd8 {[%emt 0:00:45]} 31. Ne3 {[%emt 0:00:04]} Qa4 {[%emt 0:00:32]} 32. f5 {[%emt 0:00:12]} gxf5 {[%emt 0:01:14]} 33. Nxf5 {[%emt 0:00:09]} Qc2 {[%emt 0:00:27]} 34. Qg4 {[%emt 0:01:02]} Qe4+ {[%emt 0:00:37]} 35. Qxe4 {[%emt 0:00:35]} dxe4 {[%emt 0:00:02]} 36. Nd6 {[%emt 0:00:12]} f5 {[%emt 0:01:09]} 37. b5 {[%emt 0:00:43]} cxb5 {[%emt 0:00:43]} 38. Nxb5 {[%emt 0:00:02]} Kg6 {[%emt 0:00:14]} 39. c6 {[%emt 0:00:01]} f4 {[%emt 0:00:10]} 40. c7 {[%emt 0:00:08]} Bxc7 {[%emt 0:00:03]} 41. Nxc7 {[%emt 0:00:02]} Kf5 {[%emt 0:00:02]} 42. e6 {[%emt 0:00:02]} f3+ {[%emt 0:01:15]} 43. Kf1 {[%emt 0:00:05]} Kf6 {[%emt 0:00:02]} 44. Ke1 {[%emt 0:00:11]} Ke7 {[%emt 0:00:01]} 45. Kd2 {[%emt 0:00:11]} Kd6 {[%emt 0:00:02]} 46. Ke3 {[%emt 0:00:06]} Kxc7 {[%emt 0:00:08]} 47. Kxe4 {[%emt 0:00:01]} Kd6 {[%emt 0:00:03]} 48. Kxf3 {[%emt 0:00:02]} Kxe6 {[%emt 0:00:02]} 49. Kg4 {[%emt 0:00:01]} Kf6 {[%emt 0:00:07]} 50. Kxh4 {[%emt 0:00:02]} Kf5 {[%emt 0:00:02]} 51. Kg3 {[%emt 0:00:03]} Kg5 {[%emt 0:00:03]} 52. h4+ {[%emt 0:00:02]} Kf5 {[%emt 0:00:03]} 53. f4 {[%emt 0:00:03]} Kg6 {[%emt 0:00:02]} 54. Kg4 {[%emt 0:00:05]} Kf6 {[%emt 0:00:02]} 55. h5 {[%emt 0:00:00]} Kg7 {[%emt 0:00:02]} 56. Kf5 {[%emt 0:00:00]} Kh6 {[%emt 0:00:10]} 57. Ke6 {[%emt 0:00:01]} Kxh5 {[%emt 0:00:02]} 58. f5 {[%emt 0:00:02]} Kh6 {[%emt 0:00:03]} 59. Ke7 {[%emt 0:00:02]} 1-0

[Event "56th Biel Festival Rapid 2023"]
[Site "Biel"]
[Date "2024.04.13"]
[Round "7.20"]
[White "Kocharin, Timur"]
[Black "Berger, Stefan"]
[Result "*"]
[WhiteElo "2225"]
[BlackElo "1881"]
[PlyCount "59"]
[EventDate "2023.07.16"]
[EventType "swiss"]
[EventCountry "SUI"]
[TimeControl "900+5"]

1. e4 {[%emt 0:00:05]} c6 {[%emt 0:00:06]} 2. d4 {[%emt 0:00:05]} d5 {[%emt 0:00:03]} 3. exd5 {[%emt 0:00:04]} cxd5 {[%emt 0:00:03]} 4. Bd3 {[%emt 0:00:02]} Nc6 {[%emt 0:00:06]} 5. c3 {[%emt 0:00:03]} Nf6 {[%emt 0:00:10]} 6. Bf4 {[%emt 0:00:04]} g6 {[%emt 0:00:21]} 7. Nf3 {[%emt 0:00:06]} Bg7 {[%emt 0:00:02]} 8. O-O {[%emt 0:00:04]} O-O {[%emt 0:00:06]} 9. Re1 {[%emt 0:00:18]} Bg4 {[%emt 0:00:03]} 10. Nbd2 {[%emt 0:00:00]} Qb6 {[%emt 0:00:21]} 11. Qb3 {[%emt 0:00:03]} Rfe8 {[%emt 0:00:19]} 12. Qxb6 {[%emt 0:00:05]} axb6 {[%emt 0:00:02]} 13. h3 {[%emt 0:00:02]} Bf5 {[%emt 0:01:12]} 14. Bb5 {[%emt 0:00:27]} Bd7 {[%emt 0:00:29]} 15. Bc7 {[%emt 0:00:05]} Na5 {[%emt 0:00:47]} 16. a4 {[%emt 0:00:29]} Nc4 {[%emt 0:01:24]} 17. Nxc4 {[%emt 0:00:13]} dxc4 {[%emt 0:00:02]} 18. Bxb6 {[%emt 0:00:08]} Bxb5 {[%emt 0:00:03]} 19. axb5 {[%emt 0:00:02]} e6 {[%emt 0:00:01]} 20. Nd2 {[%emt 0:00:12]} Nd7 {[%emt 0:00:06]} 21. Bc7 {[%emt 0:00:30]} Rac8 {[%emt 0:00:02]} 22. b6 {[%emt 0:00:07]} e5 {[%emt 0:00:34]} 23. d5 {[%emt 0:00:02]} Nf6 {[%emt 0:00:08]} 24. d6 {[%emt 0:00:03]} Nd7 {[%emt 0:00:04]} 25. Nxc4 {[%emt 0:00:01]} f5 {[%emt 0:00:06]} 26. Na5 {[%emt 0:00:09]} e4 {[%emt 0:00:24]} 27. Nxb7 {[%emt 0:00:03]} f4 {[%emt 0:00:01]} 28. Na5 {[%emt 0:00:08]} e3 {[%emt 0:00:03]} 29. b7 {[%emt 0:00:07]} exf2+ {[%emt 0:00:04]} 30. Kxf2 {[%emt 0:00:02]} *